Cogmind - Beta 13 --- EXPLORER MODE // 2024.06.11 @ 11:27:17 Player: Gnomed! Result: Destroyed by Lightning with EMDS Performance ------------- Evolutions (4) 2000 Regions Visited (10) 2000 Robots Destroyed (139) 695 Value Destroyed (5333) 5333 Prototype IDs (3) 60 Alien Tech Used (0) 0 Bonus (1234) 1234 TOTAL SCORE: 11322 Bonus ------- High Alert Combat Kills 240 Follower Combat Kills 830 Network Hubs Disabled 200 Friendly Fire -36 Cogmind --------- Core Integrity 0/850 Matter 278/300 Energy 84/100 System Corruption 16% Temperature Cool (0) Movement Core (100) Ox1 Location -6/Hub_04(d) Parts ------- > --- POWER (2) -------- (None) > --- PROPULSION (4) --- (None) > --- UTILITY (6) ------ Improved Heat Sink Machine Analyzer Hacking Suite > --- WEAPON (4) ------- Heavy Pick > --- INVENTORY (5) ---- Cooled Ion Engine Improved Heat Sink Improved Heat Sink Energy Well (350) High-powered Tractor Beam Peak State ------------ > --- POWER ------------ Cooled Ion Engine Cooled Ion Engine > --- PROPULSION ------- Light Treads Light Treads Light Treads Light Treads > --- UTILITY ---------- Improved Heat Sink Machine Analyzer Hardened Heavy Armor Plating Improved Light Armor Plating Hacking Suite > --- WEAPON ----------- Field Laser Gatling Laser Flak Gun Heavy Pick > --- INVENTORY -------- Cooled Ion Engine Improved Heat Sink Improved Heat Sink Energy Well High-powered Tractor Beam [Rating: 47] Favorites ----------- Power Cooled Ion Engine Engine Cooled Ion Engine Power Core Nuclear Core Reactor Quantum Reactor Propulsion Wheel Treads Light Treads Wheel Wheel Hover Unit Gravmag System Utility High-capacity Storage Unit Device Seismic Detector Storage High-capacity Storage Unit Processor Machine Analyzer Hackware Hacking Suite Protection Improved Light Armor Plating Weapon Enhanced Autogun Energy Gun Field Laser Ballistic Gun Enhanced Autogun Ballistic Cannon Assault Cannon Launcher Improved Grenade Launcher Piercing Weapon Heavy Pick Build | -11 -10 -9 -8 -8 -8 -6 -6 -6 -6 -6 ------- Run | Yrd Mat Mat Mat Sto Rec Fac Ext Cet Arc Hub Slots Evolved 9 | . 1 2 2 . . 4 . . . . Power 1 | . . . . . . 1 . . . . Propulsion 2 | . . . 1 . . 1 . . . . Utility 4 | . 1 2 . . . 1 . . . . Weapon 2 | . . . 1 . . 1 . . . . Parts Attached 101 | 8 7 12 12 12 . 5 18 6 7 14 Power 14 | 1 . 2 3 1 . 1 2 1 2 1 Engine 11 | 1 . 2 1 1 . 1 2 . 2 1 Core 2 | . . . 2 . . . . . . . Reactor 1 | . . . . . . . . 1 . . Propulsion 24 | 2 2 . 3 4 . 1 6 . 2 4 Treads 4 | . . . . . . . . . . 4 Leg . | . . . . . . . . . . . Wheel 18 | 2 2 . 3 4 . 1 6 . . . Hover 2 | . . . . . . . . . 2 . Flight . | . . . . . . . . . . . Utility 27 | 2 2 7 3 2 . 1 3 2 . 5 Device 6 | 1 1 1 . . . . 1 . . 2 Storage 5 | 1 1 1 . . . 1 1 . . . Processor 3 | . . 2 . 1 . . . . . . Hackware 1 | . . . . . . . . 1 . . Protection 12 | . . 3 3 1 . . 1 1 . 3 Artifact . | . . . . . . . . . . . Weapon 36 | 3 3 3 3 5 . 2 7 3 3 4 Energy Gun 4 | 1 1 . . . . . . . . 2 Energy Cannon . | . . . . . . . . . . . Ballistic Gun 17 | 2 2 3 3 4 . 1 . . 1 1 Ballistic Cannon 9 | . . . . . . 1 5 2 1 . Launcher 5 | . . . . 1 . . 2 1 1 . Special Weapon . | . . . . . . . . . . . Impact Weapon . | . . . . . . . . . . . Slashing Weapon . | . . . . . . . . . . . Piercing Weapon 1 | . . . . . . . . . . 1 Special Melee Weapon . | . . . . . . . . . . . Unidentified Prototypes 3 | . . . . 3 . . . . . . Parts Lost 38 | . . 1 . . . . 13 4 9 11 Power 5 | . . . . . . . 2 . 1 2 Propulsion 14 | . . . . . . . 7 1 2 4 Utility 7 | . . 1 . . . . 2 1 1 2 Weapon 12 | . . . . . . . 2 2 5 3 Highest Loss Streak 11 | . . 1 . . . . 6 4 5 11 To Critical Strikes 2 | . . . . . . . 1 1 . . Average Slot Usage (%) 91 | . 99 98 98 98 100 100 89 88 46 63 Engine 9 | . 12 10 4 5 8 12 11 8 5 7 Wheel 18 | . 24 20 23 23 25 25 15 13 . . Device 9 | . 25 13 8 8 8 6 6 3 . 1 Storage 14 | . 12 14 16 16 16 18 18 18 9 . Processor 6 | . . 10 8 8 8 6 6 6 6 6 Protection 5 | . . 10 7 7 8 6 6 6 . 8 Ballistic Gun 17 | . 25 19 25 24 25 20 10 . 3 8 Ballistic Cannon 3 | . . . . . . 3 12 19 4 . Naked Turns . | . . . . . . . . . . . Heaviest Build 106 | 16 49 64 68 67 65 82 92 106 105 54 Greatest Support 80 | 20 20 20 30 30 30 40 40 30 20 80 Greatest Overweight (x) 32 | 5 2 3 2 2 2 2 28 5 32 2 Average Overweight (x) 1 | 1 1 2 2 2 2 1 3 4 1 . Largest Inventory Capacity 20 | 10 20 20 20 20 20 20 20 20 20 5 Average Capacity 17 | 9 16 20 20 20 20 20 20 20 12 5 Most Carried 20 | 5 17 20 20 20 20 20 20 12 10 5 Average Carried 14 | 2 12 16 18 19 20 18 15 10 6 4 Final Capacity 20 | 10 20 20 20 20 20 20 20 20 5 5 Final Carried 20 | 5 17 20 20 20 20 20 12 10 5 5 Class Distribution -------------------- 26% | Hacker-Tank 24% | Hacker-Mutant 16% | Scavenger-Tank 13% | Scavenger-Mutant 5% | Commander-Tank 5% | Commander-Gunner 4% | Scavenger-Gunner 3% | Hacker-Gunner Dominant Class ---------------- Hacker-Mutant | -10/Materials Scavenger-Mutant | -9/Materials Scavenger-Gunner | -8/Materials Commander-Tank | -8/Storage Hacker-Tank | -8/Recycling Scavenger-Tank | -6/Factory Hacker-Tank | -6/Extension Hacker-Tank | -6/Cetus Hacker-Mutant | -6/Archives Hacker-Tank | -6/Hub_04(d) Resources | -11 -10 -9 -8 -8 -8 -6 -6 -6 -6 -6 ----------- Run | Yrd Mat Mat Mat Sto Rec Fac Ext Cet Arc Hub Matter Collected 4728 | 297 297 476 80 616 24 182 1845 177 294 440 Remotely . | . . . . . . . . . . . Salvage Created 5539 | 113 343 895 153 749 54 367 1666 164 269 766 Parts 293 | 8 27 65 4 49 3 11 76 6 11 33 Haulers Intercepted 3 | . . . . 2 . . . . . 1 Recyclers Shooed 1 | . . . . . 1 . . . . . Parts Field Recycled . | . . . . . . . . . . . Retrieved Matter . | . . . . . . . . . . . Parts Self-Destructed . | . . . . . . . . . . . Prevented . | . . . . . . . . . . . Kills | -11 -10 -9 -8 -8 -8 -6 -6 -6 -6 -6 ------- Run | Yrd Mat Mat Mat Sto Rec Fac Ext Cet Arc Hub Combat Hostiles Destroyed 96 | . 6 21 2 11 1 8 28 6 4 9 Guns 67 | . 6 21 2 11 1 7 11 . 1 7 Cannons 20 | . . . . . . 1 10 6 3 . AOE 5 | . . . . . . . 3 . . 2 Classes Destroyed 14 | 2 4 3 . 2 . . 3 . . . Worker 6 | . . . . 1 . . 1 . . 4 Builder 9 | . 4 . . . . . 5 . . . Tunneler 5 | 3 1 . . . . . 1 . . . Hauler 3 | . . . . 2 . . . . . 1 Recycler 8 | 1 1 . 1 2 . . 2 . . 1 Operator 6 | . . 1 . 1 . . 1 . 3 . Watcher 6 | . 1 . . 2 . . 1 1 . 1 Swarmer 15 | . 4 2 . 3 . 3 1 . . 2 Grunt 36 | . 2 12 2 3 . 3 11 3 . . Duelist 1 | . . 1 . . . . . . . . Sentry 27 | . . 6 . 5 1 2 5 . 4 4 Hunter 8 | . . . . . . . 7 . . 1 Programmer 4 | . . . . . . . 2 . . 2 Behemoth 2 | . . . . . . . 2 . . . Cetus Guard 3 | . . . . . . . . 3 . . Best Kill Streak 14 | 3 3 3 2 7 1 3 14 3 2 8 Combat Bots Only 8 | . 2 3 1 5 1 3 8 3 2 2 Max Kills in Single Turn 7 | 1 2 1 1 2 1 1 3 1 1 7 Gunslinging 1 | . . . . 1 . . . . . . Exploded 2 | . . . . . . . 2 . . 2 Melee . | . . . . . . . . . . . Uniques/NPCs Destroyed . | . . . . . . . . . . . Combat | -11 -10 -9 -8 -8 -8 -6 -6 -6 -6 -6 -------- Run | Yrd Mat Mat Mat Sto Rec Fac Ext Cet Arc Hub Hostile Shots Fired 894 | . 27 70 9 36 2 36 323 59 85 247 Missed 282 | . 10 19 1 16 1 17 105 21 20 72 Damage Taken 6810 | . 97 426 71 240 14 122 1943 660 1001 2236 Core 968 | . 6 68 9 27 . 23 233 36 269 297 Absorbed by Shields . | . . . . . . . . . . . Ignored by Resistances 4115 | . 70 269 44 139 5 81 1200 387 597 1323 Regen/Repaired (Parts) 217 | . 16 18 67 116 . . . . . . Core Remaining (%) 93 | 100 97 83 . . 93 . . . . . Volleys Fired 345 | 10 28 49 8 30 3 16 90 21 54 36 Largest 4 | 2 2 2 3 3 3 4 4 4 4 4 Hottest 194 | 60 40 46 69 75 75 119 180 180 168 194 Shots Fired 941 | 20 56 96 24 90 9 64 344 77 76 85 Gun 677 | 20 56 96 24 90 9 54 201 . 42 85 Cannon 232 | . . . . . . 10 124 70 28 . Launcher 32 | . . . . . . . 19 7 6 . Special . | . . . . . . . . . . . Kinetic 864 | 17 56 96 24 90 9 64 325 70 70 43 Thermal 42 | . . . . . . . . . . 42 Explosive 12 | . . . . . . . 1 7 4 . Electromagnetic 23 | 3 . . . . . . 18 . 2 . Robot Hit Streak 33 | 8 12 25 9 22 20 8 17 33 26 21 Robot Miss Streak 5 | 1 2 1 1 2 . 3 5 2 1 3 Penetration Max . | . . . . . . . . . . . Secondary Targets 6 | . 1 . . 3 . . 1 . . 1 Max Gunslinging Chain 1 | . 1 . . 1 . . 1 . . 1 Shots Hit Robots 685 | 17 44 77 18 66 9 40 232 62 58 62 Core Hits 322 | 8 20 35 7 30 1 19 91 26 33 52 Critical Kills 3 | . . . . 1 . 1 1 . . . Critical Parts Destroyed 4 | . . . . . . . 2 . 2 . Critical Strikes 15 | . . . . 1 . 1 6 2 4 1 Burn 1 | . . . . . . . . . . 1 Destroy 7 | . . . . 1 . 1 3 . 2 . Blast 7 | . . . . . . . 3 2 2 . Melee Attacks 3 | . . . . . . . . . . 3 Impact . | . . . . . . . . . . . Slashing . | . . . . . . . . . . . Piercing 3 | . . . . . . . . . . 3 Sneak Attacks . | . . . . . . . . . . . Combat Hostiles . | . . . . . . . . . . . Follow-up Attacks . | . . . . . . . . . . . Damage Inflicted 14969 | 137 453 1122 252 1162 163 747 5683 1777 1188 2285 Guns 8237 | 137 453 1122 252 1124 153 580 2600 . 524 1292 Cannons 3949 | . . . . . . 167 1792 1490 500 . Explosions 2632 | . . . . . . . 1264 287 164 917 Melee 67 | . . . . . . . . . . 67 Ramming 84 | . . . . 38 10 . 27 . . 9 Kinetic 11396 | 100 453 1122 252 1124 153 747 4392 1490 1024 539 Thermal 1037 | . . . . . . . 284 . . 753 Explosive 627 | . . . . . . . 194 287 146 . Electromagnetic 1758 | 37 . . . . . . 786 . 18 917 Impact . | . . . . . . . . . . . Slashing . | . . . . . . . . . . . Piercing 67 | . . . . . . . . . . 67 Highest Corruption 16 | . . . 1 4 5 . 2 2 2 16 Average Corruption 2 | . . . 1 2 4 . 1 2 2 2 Corruption Purged . | . . . . . . . . . . . Corruption Blocked . | . . . . . . . . . . . Effects 39 | . . . . 11 6 . 6 4 4 8 Message Errors 11 | . . . . 1 1 . 2 3 2 2 Matter Fused 9 | . . . . 6 . . 1 . 1 1 Heat Flow Errors 2 | . . . . . 1 . . . . 1 Energy Discharges 4 | . . . . 2 1 . . 1 . . Parts Rejected 2 | . . . . . . . 1 . . 1 Data Loss (minor) 3 | . . . . 1 . . 1 . . 1 Data Loss (major) 5 | . . . . . 3 . . . 1 1 Misfires 1 | . . . . . . . . . . 1 Alerts 1 | . . . . 1 . . . . . . Weapon Failures 1 | . . . . . . . 1 . . . Overload Shots . | . . . . . . . . . . . Overflow Damage 188 | . . . . . . . 6 . . 182 Projectiles 1 | . . . . . . . 1 . . . Explosions 182 | . . . . . . . . . . 182 Melee 5 | . . . . . . . 5 . . . Knockbacks 25 | . . . . . . . 22 2 1 . Impact 1 | . . . . . . . 1 . . . Kinetic 24 | . . . . . . . 21 2 1 . Secondary . | . . . . . . . . . . . Self-Inflicted Damage 172 | . . . . 18 5 . 60 . 19 70 Shots 6 | . . . . . . . 4 . 1 1 Rammed 6 | . . . . 2 1 . 1 . . 2 Targets Rammed 6 | . . . . 2 1 . 1 . . 2 Kicked . | . . . . . . . . . . . Crushed . | . . . . . . . . . . . Highest Temperature 505 | 40 24 23 27 88 78 358 473 351 439 505 Average Temperature 117 | 21 12 4 11 23 25 118 123 138 240 162 Received Heat Transfer 1419 | . 48 216 72 81 9 33 399 117 324 120 Effects 12 | . . . . . . . 4 . 3 5 Shutdowns 3 | . . . . . . . 1 . 1 1 Energy Bleed 5 | . . . . . . . 3 . 1 1 Interference 2 | . . . . . . . . . . 2 Matter Decay 1 | . . . . . . . . . 1 . Damage (minor) 1 | . . . . . . . . . . 1 Siege Activations . | . . . . . . . . . . . Robots Corrupted 5 | . . . . . . . 4 . . 1 Combat Hostiles 4 | . . . . . . . 4 . . . Parts Fried 7 | . . . . . . . 5 . . 2 Impact Corruptions 1 | . . . . . . . 1 . . . Robots Melted . | . . . . . . . . . . . Combat Hostiles . | . . . . . . . . . . . Parts Melted 9 | . . . . . . . . . . 9 Heat Transferred 1802 | . . . . . . . 250 . . 1552 Parts Sabotaged . | . . . . . . . . . . . Parts Stolen . | . . . . . . . . . . . Parts Stripped . | . . . . . . . . . . . Power Chain Reactions 8 | . . . . . . . 8 . . . Alert | -11 -10 -9 -8 -8 -8 -6 -6 -6 -6 -6 ------- Run | Yrd Mat Mat Mat Sto Rec Fac Ext Cet Arc Hub Peak Influence 666 | 20 228 384 95 426 73 187 666 291 193 307 Initial 172 | . 9 . 6 1 45 71 54 172 81 45 Average 178 | 8 61 138 43 230 67 150 369 234 166 164 Maximum Alert Level 2 | . 1 1 . 2 . . 2 1 . 1 Low Security (%) 66 | 100 94 79 100 45 100 100 13 17 100 63 Level 1 24 | . 5 20 . 47 . . 41 82 . 36 Level 2 9 | . . . . 6 . . 44 . . . Level 3 . | . . . . . . . . . . . Level 4 . | . . . . . . . . . . . Level 5 . | . . . . . . . . . . . High Security . | . . . . . . . . . . . Max Security . | . . . . . . . . . . . Squads Dispatched 21 | . . 3 1 4 . 1 8 1 . 3 Investigation 11 | . . 3 1 1 . 1 4 1 . . Extermination . | . . . . . . . . . . . Reinforcement 7 | . . . . 2 . . 4 . . 1 Assault . | . . . . . . . . . . . Garrison 3 | . . . . 1 . . . . . 2 Intercept . | . . . . . . . . . . . Searches Triggered . | . . . . . . . . . . . Construction Impeded 2 | . . . . . . . 2 . . . Haulers Reinforced . | . . . . . . . . . . . Active Scanning Responses . | . . . . . . . . . . . Cargo Convoy Interrupts . | . . . . . . . . . . . Stealth | -11 -10 -9 -8 -8 -8 -6 -6 -6 -6 -6 --------- Run | Yrd Mat Mat Mat Sto Rec Fac Ext Cet Arc Hub Distress Signals 18 | . 1 3 1 2 . . 5 1 . 5 Communications Jammed . | . . . . . . . . . . . Distress Signals . | . . . . . . . . . . . Times Spotted 197 | . 15 26 5 28 1 11 50 7 26 28 Peak Tracking Total 14 | . 4 8 3 8 1 3 7 5 2 14 Tactical Retreats 10 | . . . 1 1 . 1 7 . . . Traps | -11 -10 -9 -8 -8 -8 -6 -6 -6 -6 -6 ------- Run | Yrd Mat Mat Mat Sto Rec Fac Ext Cet Arc Hub Traps Triggered 9 | . 3 . 1 . . 1 4 . . . Indirectly . | . . . . . . . . . . . Trap Hack Attempts . | . . . . . . . . . . . Triggered . | . . . . . . . . . . . Disarmed . | . . . . . . . . . . . Reprogrammed . | . . . . . . . . . . . Reused . | . . . . . . . . . . . Traps Extracted . | . . . . . . . . . . . Installed . | . . . . . . . . . . . Triggered . | . . . . . . . . . . . Machines | -11 -10 -9 -8 -8 -8 -6 -6 -6 -6 -6 ---------- Run | Yrd Mat Mat Mat Sto Rec Fac Ext Cet Arc Hub Machines Disabled 33 | . . 2 1 1 . 1 4 . 7 17 Max in Single Turn 17 | . . 1 1 1 . 1 1 . 2 17 Garrison Access 1 | . . . . 1 . . . . . . Network Hub 1 | . . . . . . . . . . 1 Machines Repaired . | . . . . . . . . . . . Machines Dismantled . | . . . . . . . . . . . Machines Sabotaged . | . . . . . . . . . . . Overloaded Fab Kills . | . . . . . . . . . . . Hacking | -11 -10 -9 -8 -8 -8 -6 -6 -6 -6 -6 --------- Run | Yrd Mat Mat Mat Sto Rec Fac Ext Cet Arc Hub Machines Accessed 50 | . 9 5 6 11 2 2 13 1 . 1 Terminals 43 | . 8 4 5 8 2 2 12 1 . 1 Fabricators . | . . . . . . . . . . . Repair Stations 5 | . 1 1 1 2 . . . . . . Recycling Units 1 | . . . . . . . 1 . . . Scanalyzers . | . . . . . . . . . . . Garrison Access 1 | . . . . 1 . . . . . . Total Hacks 119 | . 20 16 19 29 4 4 23 3 . 1 Successful 75 | . 17 8 15 18 2 . 14 . . 1 Failed 44 | . 3 8 4 11 2 4 9 3 . . Catastrophic 5 | . . 1 . 1 . 1 2 . . . Database Lockouts . | . . . . . . . . . . . Manual 58 | . 13 13 9 12 3 1 6 . . 1 Terminals 92 | . 18 14 13 15 4 4 20 3 . 1 Fabricators . | . . . . . . . . . . . Repair Stations 22 | . 2 2 6 12 . . . . . . Recycling Units 3 | . . . . . . . 3 . . . Scanalyzers . | . . . . . . . . . . . Garrison Access 2 | . . . . 2 . . . . . . Terminal Hacks 38 | . 8 6 5 6 2 . 11 . . . Record 1 | . . 1 . . . . . . . . Open Door 13 | . . . . 4 . . 9 . . . Level Access Points 3 | . 1 1 . . 1 . . . . . Branch Access Points 3 | . . 1 1 1 . . . . . . Unreport Threat 5 | . . 3 2 . . . . . . . Zone Layout 13 | . 7 . 2 1 1 . 2 . . . Fabricator Hacks . | . . . . . . . . . . . Repair Station Hacks 21 | . 2 2 6 11 . . . . . . Scan Component 11 | . 1 1 3 6 . . . . . . Repair 10 | . 1 1 3 5 . . . . . . Recycling Unit Hacks 3 | . . . . . . . 3 . . . Retrieve Matter 3 | . . . . . . . 3 . . . Scanalyzer . | . . . . . . . . . . . Garrison Access Hacks 1 | . . . . 1 . . . . . . Seal Access 1 | . . . . 1 . . . . . . Unauthorized Hacks 12 | . 7 . 4 . . . . . . 1 Terminals 12 | . 7 . 4 . . . . . . 1 Assimilate 1 | . . . 1 . . . . . . . Botnet 10 | . 7 . 3 . . . . . . . Detonate 1 | . . . . . . . . . . 1 Fabricators . | . . . . . . . . . . . Repair Stations . | . . . . . . . . . . . Recycling Units . | . . . . . . . . . . . Scanalyzers . | . . . . . . . . . . . Garrison Access . | . . . . . . . . . . . Data Cores Recovered 2 | . . 1 . 1 . . . . . . Used . | . . . . . . . . . . . Hacking Detections 36 | . 7 5 4 9 1 2 7 1 . . Full Trace Events 16 | . 1 4 1 4 1 1 3 1 . . Feedback Events 1 | . . . . 1 . . . . . . Corruption 1 | . . . . 1 . . . . . . Feedback Blocked . | . . . . . . . . . . . Robot Schematics Acquired . | . . . . . . . . . . . Robots Built . | . . . . . . . . . . . Authchips . | . . . . . . . . . . . Time . | . . . . . . . . . . . Total Robot Build Rating . | . . . . . . . . . . . Part Schematics Acquired . | . . . . . . . . . . . Parts Built . | . . . . . . . . . . . Authchips . | . . . . . . . . . . . Time . | . . . . . . . . . . . Total Part Build Rating . | . . . . . . . . . . . Parts Repaired 10 | . 1 1 3 5 . . . . . . Time 278 | . 26 26 84 142 . . . . . . Parts Recycled . | . . . . . . . . . . . Recycled Matter . | . . . . . . . . . . . Retrieved Matter . | . . . . . . . . . . . Retrieved Components . | . . . . . . . . . . . Parts Scanalyzed . | . . . . . . . . . . . Part Schematics Acquired . | . . . . . . . . . . . Parts Damaged . | . . . . . . . . . . . Bothacking | -11 -10 -9 -8 -8 -8 -6 -6 -6 -6 -6 ------------ Run | Yrd Mat Mat Mat Sto Rec Fac Ext Cet Arc Hub Used RIF Installer . | . . . . . . . . . . . Robots Hacked . | . . . . . . . . . . . Non-combat . | . . . . . . . . . . . Combat . | . . . . . . . . . . . Robot Hacks Applied . | . . . . . . . . . . . Relay Couplers Released . | . . . . . . . . . . . Fabnet Peak Effective % . | . . . . . . . . . . . Robots Rewired . | . . . . . . . . . . . Allies Hacked 1 | . . . . . . . 1 . . . Hacks Repelled . | . . . . . . . . . . . Allies | -11 -10 -9 -8 -8 -8 -6 -6 -6 -6 -6 -------- Run | Yrd Mat Mat Mat Sto Rec Fac Ext Cet Arc Hub Total Allies 27 | . . . 1 10 . . 16 . . . Largest Group 10 | . . . 1 10 2 . 5 1 . . Highest-Rated Group 173 | . . . 10 173 45 . 158 28 . . Highest-Rated Ally 39 | . . . 10 29 29 . 39 28 . . Total Orders . | . . . . . . . . . . . Ally Attacks 185 | . . . . 66 2 . 95 22 . . Total Damage 2906 | . . . . 924 33 . 1615 334 . . Kills 27 | . . . . 12 . . 14 1 . . Allies Corrupted . | . . . . . . . . . . . Allies Melted . | . . . . . . . . . . . Intel | -11 -10 -9 -8 -8 -8 -6 -6 -6 -6 -6 ------- Run | Yrd Mat Mat Mat Sto Rec Fac Ext Cet Arc Hub Robot Analysis Total . | . . . . . . . . . . . Derelict Logs Recovered . | . . . . . . . . . . . Drone Launches . | . . . . . . . . . . . Drone Recoveries . | . . . . . . . . . . . Exploration | -11 -10 -9 -8 -8 -8 -6 -6 -6 -6 -6 ------------- Run | Yrd Mat Mat Mat Sto Rec Fac Ext Cet Arc Hub Turns Passed 6197 | 134 1009 819 381 894 242 509 1134 249 357 469 Spaces Moved 3960 | 77 902 476 220 568 214 337 614 115 200 237 Core 69 | 32 . . . . . . 2 . 35 . Treads 120 | . . . . . . . . . . 120 Legs . | . . . . . . . . . . . Wheels 3507 | 45 902 476 220 568 214 337 612 115 18 . Hover 264 | . . . . . . . . . 147 117 Flight . | . . . . . . . . . . . Fastest Speed 50 | 50 80 110 110 110 110 95 110 125 50 56 Average Speed 114 | 118 97 116 110 110 110 105 133 148 111 136 Slowest Speed 1650 | 300 110 125 110 110 110 110 1450 155 1650 320 Overloaded Moves . | . . . . . . . . . . . Propulsion Burnouts . | . . . . . . . . . . . Robots Hopped . | . . . . . . . . . . . Cave-ins Triggered . | . . . . . . . . . . . Exploration Rate (%) 48 | 4 95 44 25 77 40 6 73 49 91 25 Regions Visited 10 Branch Regions 6 Pre-discovered Areas . | . . . . . . . . . . . Known Exits Taken 10 | 1 1 1 1 1 1 1 1 1 1 . Unknown Exits Taken . | . . . . . . . . . . . Scrap Searched . | . . . . . . . . . . . Spaces Dug 1 | . . . . . . . . . . 1 Terrain Destroyed 255 | . . . . . . . 37 43 16 159 Melee 1 | . . . . . . . . . . 1 Projectile 8 | . . . . . . . 8 . . . AOE 246 | . . . . . . . 29 43 16 158 Terrain Rammed . | . . . . . . . . . . . Walls Destroyed . | . . . . . . . . . . . Machines Disabled . | . . . . . . . . . . . Actions | -11 -10 -9 -8 -8 -8 -6 -6 -6 -6 -6 --------- Run | Yrd Mat Mat Mat Sto Rec Fac Ext Cet Arc Hub Total 5073 | 100 987 647 343 815 217 469 784 142 268 301 Wait 514 | . 26 89 91 163 . 98 42 . . 5 Move 3950 | 76 901 475 219 567 213 336 613 114 199 237 Hop . | . . . . . . . . . . . Pick Up 70 | 5 19 12 5 20 . 5 1 . 2 1 Fast Attach 37 | 7 1 3 4 6 . . 3 . 2 11 Attach 52 | 1 5 8 4 6 . 5 12 4 5 2 Detach 7 | 1 . 2 . . . . 2 1 1 . Swap 12 | . 1 1 4 . . . 3 2 . 1 Drop 53 | . 6 8 8 21 . 1 1 . 5 3 Fire 345 | 10 28 49 8 30 3 16 90 21 54 36 Melee 3 | . . . . . . . . . . 3 Ram 6 | . . . . 2 1 . 1 . . 2 Kick . | . . . . . . . . . . . Crush . | . . . . . . . . . . . Escape Stasis 24 | . . . . . . 8 16 . . . Rewire . | . . . . . . . . . . . Trap . | . . . . . . . . . . . Miscellaneous . | . . . . . . . . . . . Route ------- -11/Scrapyard -10/Materials (discovered 5 exits: *Mat x3 / *Min / Sub) -9/Materials (discovered 5 exits: *Mat x3 / *Min x2) -8/Materials -8/Storage (discovered 2 exits: *Fac / *Rec) -8/Recycling -6/Factory -6/Extension (discovered 3 exits: *Fac x2 / *Cet) -6/Cetus -6/Archives (discovered 3 exits: *Fac / *Hub x2) -6/Hub_04(d) (discovered 1 exit: *Fac) History --------- Turn | Location | Event 21 | -11/Scrapyard | Identified exit to Materials 21 | -11/Scrapyard | Discovered exit to Materials (range 16) 135 | -11/Scrapyard | Entered Materials 135 | -10/Materials | Evolved 1 slot: Utility x1 180 | -10/Materials | Identified exit to Materials 308 | -10/Materials | Build established: Hacker-Mutant 631 | -10/Materials | Identified exit to Subcaves 631 | -10/Materials | Discovered exit to Subcaves (range 6) 913 | -10/Materials | Repaired Wheel 949 | -10/Materials | Identified exit to Mines 949 | -10/Materials | Discovered exit to Mines (range 8) 1144 | -10/Materials | Entered another Materials area 1144 | -9/Materials | Evolved 2 slots: Utility x2 1179 | -9/Materials | Identified exit to Mines 1179 | -9/Materials | Discovered exit to Mines (range 16) 1355 | -9/Materials | Identified exit to Materials 1454 | -9/Materials | Build established: Scavenger-Mutant 1631 | -9/Materials | Repaired Seismic Detector 1963 | -9/Materials | Entered another Materials area 1963 | -8/Materials | Evolved 2 slots: Propulsion x1, Weapon x1 2066 | -8/Materials | Repaired Wheel 2093 | -8/Materials | Repaired Wheel 2127 | -8/Materials | Repaired Med. Armor Plating 2321 | -8/Materials | Identified exit to Storage 2344 | -8/Materials | Entered Storage 2469 | -8/Storage | Assisted by bots powering up and referring to "LRC-V3" 2653 | -8/Storage | Repaired Wheel 2680 | -8/Storage | Repaired Wheel 2708 | -8/Storage | Repaired Wheel 2747 | -8/Storage | Repaired Imp. Light Armor Plating 2768 | -8/Storage | Build established: Commander-Gunner 2784 | -8/Storage | Identified exit to Recycling 2863 | -8/Storage | Identified exit to Factory 2863 | -8/Storage | Discovered exit to Factory (range 8) 3049 | -8/Storage | Garrison activated, responded to threat 3069 | -8/Storage | Build established: Commander-Tank 3201 | -8/Storage | Repaired Wheel 3234 | -8/Storage | Used back door to open Recycling access 3238 | -8/Storage | Entered Recycling 3238 | -8/Recycling | Accompanied by 2 allies 3410 | -8/Recycling | Identified exit to Factory 3412 | -8/Recycling | Build established: Hacker-Tank 3480 | -8/Recycling | Entered Factory 3480 | -6/Factory | Evolved 4 slots: Power x1, Propulsion x1, Utility x1, Weapon x1 3786 | -6/Factory | Build established: Scavenger-Tank 3972 | -6/Factory | Identified exit to Extension 3972 | -6/Factory | Discovered exit to Extension (range 16) 3989 | -6/Factory | Entered Extension 4067 | -6/Extension | Rescued a captive Derelict 4068 | -6/Extension | Rescued a captive Derelict 4148 | -6/Extension | Rescued a captive Derelict 4149 | -6/Extension | Rescued a captive Derelict 4220 | -6/Extension | Rescued a captive Derelict 4221 | -6/Extension | Rescued a captive Derelict 4291 | -6/Extension | Lost 6 allies 4293 | -6/Extension | Rescued a captive Derelict 4296 | -6/Extension | Rescued a captive Derelict 4309 | -6/Extension | Spotted B-75 Beast 4339 | -6/Extension | Destroyed B-75 Beast 4355 | -6/Extension | Spotted B-75 Beast 4373 | -6/Extension | Destroyed B-75 Beast 4415 | -6/Extension | Lost 6 parts (4n2u) 4423 | -6/Extension | Destroyed 8 combat bots 4443 | -6/Extension | Identified exit to Factory 4443 | -6/Extension | Discovered exit to Factory (range 3) 4489 | -6/Extension | Disrupted transfer network 4558 | -6/Extension | Rescued a captive Derelict 4559 | -6/Extension | Rescued a captive Derelict 4589 | -6/Extension | Rescued a captive Derelict 4590 | -6/Extension | Rescued a captive Derelict 4660 | -6/Extension | Build established: Hacker-Tank 4820 | -6/Extension | Lost 4 parts (2p2w) 4926 | -6/Extension | Rescued a captive Derelict 4927 | -6/Extension | Rescued a captive Derelict 5003 | -6/Extension | Rescued a captive Derelict 5003 | -6/Extension | Rescued a captive Derelict 5069 | -6/Extension | Discovered exit to Factory (range 10) 5071 | -6/Extension | Identified exit to Cetus 5071 | -6/Extension | Discovered exit to Cetus (range 6) 5089 | -6/Extension | Disrupted transfer network 5123 | -6/Extension | Entered Cetus 5123 | -6/Cetus | Accompanied by 1 ally 5133 | -6/Cetus | Lost 3 allies 5139 | -6/Cetus | Spotted Cetus Guard 5139 | -6/Cetus | Spotted Cetus Guard 5145 | -6/Cetus | Spotted Cetus Guard 5147 | -6/Cetus | Destroyed Cetus Guard 5166 | -6/Cetus | Allies destroyed Cetus Guard 5170 | -6/Cetus | Spotted Cetus Guard 5189 | -6/Cetus | Destroyed Cetus Guard 5204 | -6/Cetus | Destroyed Cetus Guard 5221 | -6/Cetus | Lost 4 parts (1n1u2w) 5312 | -6/Cetus | Identified exit to Archives 5312 | -6/Cetus | Discovered exit to Archives (range 16) 5372 | -6/Cetus | Entered Archives 5447 | -6/Archives | Lost 4 parts (2n1u1w) 5490 | -6/Archives | Core integrity fell below 50% 5539 | -6/Archives | Lost 5 parts (1p4w) 5593 | -6/Archives | Identified exit to Hub_04(d) 5593 | -6/Archives | Discovered exit to Hub_04(d) (range 15) 5627 | -6/Archives | Discovered exit to Factory (range 16) 5684 | -6/Archives | Discovered exit to Hub_04(d) (range 16) 5729 | -6/Archives | Entered Hub_04(d) 5792 | -6/Hub_04(d) | Build established: Hacker-Mutant 5928 | -6/Hub_04(d) | Discovered exit to Factory (range 16) 6010 | -6/Hub_04(d) | Garrison activated, responded to threat 6154 | -6/Hub_04(d) | Network Hub disabled 6157 | -6/Hub_04(d) | Spotted Lightning 6170 | -6/Hub_04(d) | Spotted Lightning 6170 | -6/Hub_04(d) | Spotted Lightning 6170 | -6/Hub_04(d) | Spotted Lightning 6176 | -6/Hub_04(d) | Spotted Lightning 6178 | -6/Hub_04(d) | Spotted Lightning 6180 | -6/Hub_04(d) | Spotted Lightning 6187 | -6/Hub_04(d) | Core integrity fell below 20% 6190 | -6/Hub_04(d) | System corruption reached 10% 6198 | -6/Hub_04(d) | Destroyed by Lightning with EMDS Last Messages --------------- 06190_ System corrupted: FCS attempts to trigger Gatling Laser. 06190_ System corrupted: Gatling Laser misfires. 06190_ Penetrated by EMDS Slug. 06190_ Lgt. Treads destroyed. 06191_ Penetrated by EMDS Slug. 06191_ Lgt. Treads destroyed. 06191_ Penetrated by EMDS Slug. 06191_ EMDS Slug penetrates Lightning. 06192_ Penetrated by EMDS Slug. 06193_ Lgt. Treads destroyed. 06194_ Penetrated by EMDS Slug. 06194_ Lgt. Treads destroyed. 06196_ Penetrated by EMDS Slug. 06196_ Imp. Light Armor Plating destroyed. 06196_ Penetrated by EMDS Slug. 06196_ Control Node disabled. 06197_ Penetrated by EMDS Slug. 06197_ Gatling Laser destroyed. 06197_ Field Laser destroyed. 06198_ Penetrated by EMDS Slug. Map ----- +----------------------------------------------------+ | ?????????????????????????????????????????????????? | | ?????????????""""?""""???????????????????????????? | | ?????????????" "" """"???????????????????????????? | | ????????????? " """"???????????????????????????? | | ????????????? " """"???????????????????????????? | | ????????????? ??????????????????????????????? | | ?????????????#""""###????????????????????????????? | | ????????????? " #????*%*?????????????????????? | | ????????????? " #####!*["????????????????????? | | ?????????????#" " " ???????????????????? | | ????????????? " !" ; ;"""??????????????????? | | ????????????##" ";;;;;;;;;""?????????????????? | | ????????????# " ; ;????????????????? | | ????????#???? " i ; R;;#??????????????? | | ???######/####; ; ! ; #?????????????? | | ???# "; ; w ; #?????????????? | | ???# ! ! ;; ; ; #?????????????? | | ???# !! ;; ; #?????????????? | | ???# ! ] ;; ; % ; #??????????? ?? | | ???# ;; ; !k ; #??????????? ?? | | ???# #; ; %[ ; #??????????? ?? | | ???# #; ; |[ k ; #??????????? ?? | | ???# ?#[% ;;;;;;;;;;;;;;##########??? ?? | | ???#####/#####=;;;; ;;;;;;h i ; #??? ?? | | ???# w%=% ihhh ;= #??# ## | | ???# @%hk%*%= ### # | | ???? #####"""#;;;;##;;;;;% / ;! " # | | ???? ????# # ! ###h ;; / ### # | | ?????????### #?# ;# #??# #? | | ???????????# #?# ;# #??# #? | | ???????????# #?# ;# [[ #??# #? | | ???????????# " #?# "# [!] #??# #? | | ???????????# " " " ?# T# [! #??# #? | | ???????????# #?# "# #### ## | | ???????????# " " #"" ## + = = | | ?????????????"? " #"T #######/### ######### | | ?????????????" " " #"" #????? ?#### | | ????????????????? ### #???""" #???# | | ????????????????? ??# #???? #???# ] | | ???????????????????##/##??# #????? "?????# | | ????????????????????? ????# #???? ""?????# | | ??????????????????????????? ???????G?????# | | ???????????????????????????##??????""?????# | | ????????????????????????????????????"?????# | | ??????????????????????????????????????????######## | | ?????????????????????????????????????????????????? | | ?????????????????????????????????????????????????? | | ?????????????????????????????????????????????????? | | | | | +----------------------------------------------------+ Best States ------------- Heat Dissipation 51 Energy Generation 34 Energy Capacity 880 Matter Stores 500 Matter Capacity 500 Sight Range 16 Terrain Scan Range 16 Terrain Scan Density 85 Armor Coverage 750 Resistance: KI 35 Resistance: TH 35 Resistance: EX 35 Resistance: EM 35 Resistance: I 35 Resistance: S 35 Resistance: P 35 Evasion (%) 53 Targeting Accuracy 6 Recoil Reduction 4 Offensive Hacking 30 Item Schematics ----------------- None Robot Schematics ------------------ None Fabricated ------------ Nothing Alien Tech Used ----------------- None Achievements -------------- None Challenges ------------ None Game ------ Seed RiotSpliceReconfigurator Manual? 0 Play Time 01:10:27 Cumulative 30.0 hours Start 2024.06.10 @ 15:08:05 End 2024.06.11 @ 11:27:17 Sessions 1 Manual Loads 0 Difficulty Explorer Special Mode None Game No. 24 Rogue 0 Adventurer 0 Explorer 24 Win Type - Total 1 Types 0/0/1/0/0/0/0/0/0 Lore% 23 Gallery% 47 Achievement% 43 Wizard Run 0 Options --------- Layout 0 ASCII 0 Keyboard 0 Movement Arrows Keybinds 0 Fullscreen 2 Font 18/SmallcapsGlow Map View 38x25 Zoom Use 99% Tactical HUD 1 Map Filters NONE Filters NONE Steam 1 RUN: fee18a02-c6f6-4ef0-a6bd-37bc28d5288b